[Event "FRA-ch Teams Top 16-Haute 2022"]
[Site "Chartres"]
[Date "2022.06.16"]
[Round "8.22"]
[White "Gozzoli, Yannick"]
[Black "Guliyev, Namig"]
[Result "1/2-1/2"]
[ECO "D22"]
[WhiteElo "2591"]
[BlackElo "2547"]
[Annotator "TA"]
[PlyCount "31"]
[EventDate "2022.06.16"]
[EventType "team-tourn"]
[EventCountry "FRA"]
[SourceTitle "playchess.com"]
[Source "ChessBase"]
[SourceQuality "1"]
[TimeControl "40/5400+30:1800+30"]

{[%evp 10,31,22,31,51,33,52,29,34,14,56,48,54,13,22,2,0,0,0,5,18,8,16,16]} 1. d4 {[%emt 0:00:08]} d5 {[%emt 0:00:24][%cal Bd7d5,Bd5c4][%mdl 32]} 2. c4 {[%emt 0:00:09]} dxc4 {[%emt 0:00:09]} 3. Nf3 {[%emt 0:00:07]} a6 {[%emt 0:01:29]} 4. e3 {[%emt 0:00:09]} b5 {[%emt 0:00:23]} 5. a4 {[%emt 0:00:05]} Bb7 {[%emt 0:00:09]} 6. b3 {[%emt 0:00:10]} Nf6 {[%emt 0:00:25][%cal Oc7c5] D22: Queen's Gambit Accepted: 3 Nf3 a6 4 e3.} 7. bxc4 {[%emt 0:00:09]} bxc4 {[%emt 0:00:06]} 8. Bxc4 {[%emt 0:00:04]} e6 {[%emt 0:00:09] White has an edge.} 9. O-O {[%emt 0:00:05]} Nbd7 {[%emt 0:00:18]} 10. Nbd2 {[%emt 0:01:11]} Be7 {[%emt 0:01:29]} 11. Be2 $5 {[%emt 0:14:49][%mdl 4] An interesting side line.} (11. Qb3 $5 {[%cal Rb3b7]} Rb8 12. Qd3 $14) 11... O-O {[%emt 0:02:04] The position is equal.} 12. Nc4 {[%emt 0:00:08]} c5 {[%emt 0:01:10] [#]} 13. Ba3 $146 {[%emt 0:03:24]} ({Predecessor:} 13. Bd2 Qc7 14. Rb1 Be4 15. Ba5 Qa7 16. Bd3 Rab8 17. Bxe4 Nxe4 18. Qd3 Nef6 19. Nfe5 Nxe5 20. dxe5 {½-½ (52) Maiwald,J (2445)-Vlahos,K (2250) Berlin 1994}) 13... a5 {[%emt 0:06:17]} 14. dxc5 {[%emt 0:18:29]} Bxc5 {[%emt 0:00:53]} 15. Bxc5 {[%emt 0:06:48]} Nxc5 {[%emt 0:00:39]} 16. Qxd8 {[%emt 0:01:16] Weighted Error Value: White=0.09 (flawless) /Black=0.07 (flawless)} 1/2-1/2

[Event "FRA-ch Teams Top 16-Haute 2022"]
[Site "Chartres"]
[Date "2022.06.16"]
[Round "8.23"]
[White "Maurizzi, Marc`Andria"]
[Black "Movsesian, Sergei"]
[Result "1/2-1/2"]
[ECO "E09"]
[WhiteElo "2490"]
[BlackElo "2600"]
[Annotator "TA"]
[PlyCount "56"]
[EventDate "2022.06.16"]
[EventType "team-tourn"]
[EventCountry "FRA"]
[SourceTitle "playchess.com"]
[Source "ChessBase"]
[SourceQuality "1"]
[TimeControl "40/5400+30:1800+30"]

{[%evp 27,30,23,29,0,31]} 1. d4 {[%emt 0:00:58] Marin,M} Nf6 {[%emt 0:00:28]} 2. c4 {[%emt 0:00:08]} e6 {[%emt 0:00:06]} 3. Nf3 {[%emt 0:00:03]} d5 {[%emt 0:00:55]} 4. g3 {[%emt 0:00:15]} Bb4+ {[%emt 0:01:44]} 5. Bd2 {[%emt 0:00:06]} Be7 {[%emt 0:01:13]} 6. Bg2 {[%emt 0:00:03]} O-O {[%emt 0:00:24]} 7. O-O {[%emt 0:00:02]} c6 {[%emt 0:02:40]} 8. Qc2 {[%emt 0:02:07]} Nbd7 {[%emt 0:00:52]} 9. Bf4 {[%emt 0:01:08]} Nh5 {[%emt 0:02:06]} 10. Bc1 {[%emt 0:00:25]} Nhf6 {[%emt 0:00:05]} 11. Bf4 {[%emt 0:01:54]} Nh5 {[%emt 0:01:34]} 12. Bc1 {[%emt 0:00:06]} Nhf6 {[%emt 0:00:05]} 13. Nbd2 {[%emt 0:11:45]} b6 {[%emt 0:02:08] 13...Bd6 is the modern continuation.} 14. e4 {[%emt 0:01:36]} Bb7 {[%emt 0:01:26]} 15. Re1 {[%emt 0:30:42] E09: Closed Catalan: Main Line: 7 Qc2 c6 8 Nbd2.} (15. e5 $5 {[%cal Re5f6]} Ng4 16. cxd5 cxd5 17. Nb1 $14) 15... Rc8 {[%emt 0:08:53] [#] A rather calm draw.} {Predecessor:} 16. e5 $146 Ne8 17. cxd5 cxd5 18. Qa4 Nc7 19. Nf1 b5 20. Qd1 a5 21. h4 a4 22. N1h2 Ra8 23. Bf1 b4 24. Bd3 f5 25. exf6 Nxf6 26. Bf4 Ne4 27. Ng5 Bxg5 28. hxg5 Nxg5 {1-0 (45) Nyback,T (2634)-Lputian,S (2588) Kallithea 2008 CBM 127 [Marin,M]} 1/2-1/2

[Event "FRA-ch Teams Top 16-Haute 2022"]
[Site "Chartres"]
[Date "2022.06.16"]
[Round "8.24"]
[White "Guichard, Pauline"]
[Black "Martsynovskaya, Marina"]
[Result "1-0"]
[ECO "A84"]
[WhiteElo "2377"]
[BlackElo "2070"]
[Annotator "TA"]
[PlyCount "85"]
[EventDate "2022.06.16"]
[EventType "team-tourn"]
[EventCountry "FRA"]
[SourceTitle "playchess.com"]
[Source "ChessBase"]
[SourceQuality "1"]
[TimeControl "40/5400+30:1800+30"]

{[%evp 17,85,52,54,47,67,71,57,57,80,80,72,55,57,27,31,30,27,25,53,53,70,58,48,27,47,37,34,31,33,27,31,31,31,29,28,25,41,47,47,34,47,12,45,49,52,26,35,31,145,96,139,0,87,5,5,0,70,67,426,418,530,320,688,164,1358,1340,1286,1277,1299,1116]} 1. c4 {[%emt 0:01:34]} f5 {[%emt 0:00:43]} 2. d4 {[%emt 0:00:18]} e6 {[%emt 0:00:14]} 3. Nf3 {[%emt 0:00:16]} Nf6 {[%emt 0:00:19]} 4. Nc3 {[%emt 0:00:49]} d5 {[%emt 0:00:56]} 5. Bf4 {[%emt 0:00:26]} c6 {[%emt 0:00:14]} 6. e3 {[%emt 0:00:10]} Bd6 {[%emt 0:00:36]} 7. Bd3 {[%emt 0:00:16]} O-O {[%emt 0:02:17]} 8. O-O {[%emt 0:00:49]} Ne4 {[%emt 0:08:42]} 9. Bxd6 {[%emt 0:01:41]} Qxd6 {[%emt 0:01:57]} 10. Qb3 {[%emt 0:00:14] A84: Dutch Defence: 2 c4 Miscellaneous.} Kh8 {[%emt 0:12:14]} 11. Ne2 {[%emt 0:05:49]} Nd7 {[%emt 0:02:33]} 12. Nf4 {[%emt 0:03:00] White is slightly better.} Ndf6 {[%emt 0:04:13]} 13. c5 {[%emt 0:04:27] [#]} Qc7 $146 {[%emt 0:03:45]} ({Predecessor:} 13... Qe7 14. Ne5 Kg8 15. Bxe4 fxe4 16. f3 Qc7 17. Rf2 Bd7 18. Raf1 exf3 19. gxf3 Rae8 {1-0 (54) Carolei,A (2378)-Llagaria Vidal,E ICCF email 2010}) 14. Qc2 {[%emt 0:03:53]} (14. Bxe4 $5 fxe4 15. Ne5 $14) 14... g5 {[%emt 0:06:31]} 15. Bxe4 {[%emt 0:06:02][%cal Of3g5]} gxf4 {[%emt 0:10:11]} 16. Bd3 {[%emt 0:00:07]} fxe3 {[%emt 0:00:29]} 17. fxe3 {[%emt 0:00:08]} Bd7 {[%emt 0:00:08]} 18. Ne5 {[%emt 0:10:52]} Be8 {[%emt 0:10:20]} 19. Rf4 {[%emt 0:01:12]} Rg8 {[%emt 0:00:30]} 20. Be2 {[%emt 0:03:57]} Nd7 {[%emt 0:06:47]} 21. Nd3 {[%emt 0:00:10]} Bg6 {[%emt 0:02:59]} 22. Raf1 {[%emt 0:05:18][%cal Ba1f1,Bf1f3,Bf3h3,Bh3h6][%mdl 32]} Rae8 {[%emt 0:04:17]} 23. R1f3 {[%emt 0:05:32]} Bh5 {[%emt 0:06:11] And now ...e5 would win.} 24. Rh3 {[%emt 0:01:14]} Bxe2 {[%emt 0:01:27]} 25. Qxe2 {[%emt 0:00:06]} Nf6 {[%emt 0:02:21]} 26. Ne5 {[%emt 0:07:39]} Re7 {[%emt 0:01:38]} 27. Rh6 {[%emt 0:09:18]} Nd7 {[%emt 0:07:02][%cal Bf6d7,Bd7f8,Bf8g6][%mdl 32]} 28. Nd3 {[%emt 0:04:00]} Nf8 {[%emt 0:02:41]} 29. Rfh4 {[%emt 0:02:05]} Ng6 {[%emt 0:00:19]} (29... Reg7 $5 {[%cal Rg7g2]}) 30. Rh3 {[%emt 0:00:24]} Reg7 {[%emt 0:01:18]} 31. Qh5 {[%emt 0:03:47]} Nf8 {[%emt 0:00:05]} 32. Nf4 {[%emt 0:01:17]} Qd7 {[%emt 0:00:56]} (32... Rg4 $14) 33. Kf1 {[%emt 0:06:21]} (33. Qh4 $142 {Intending Qf6 and mate.} Rf7 34. Nd3) 33... Qe7 {[%emt 0:00:07]} 34. Kf2 {[%emt 0:01:47] 0x0.00207b14811bdp-1022s more active pieces.} (34. Qh4 $1 $16 {[%cal Oh6h7] Rxh7+! is the strong threat.} Qxh4 35. R3xh4) 34... b6 {[%emt 0:00:05] [#]} ({Resist} 34... e5 35. dxe5 Rg5 36. Qd1 $16 (36. Qh4 R8g7 $14)) (34... Rg4 $11 35. Nxe6 Rxg2+ 36. Kf3 (36. Kf1 Rg1+ 37. Ke2 R8g2+ 38. Kd3 Rf2 $15) 36... R8g7) 35. b4 {[%emt 0:00:27]} ({White should try} 35. cxb6 $1 $16 axb6 36. Qh4 Qxh4+ 37. R3xh4) 35... bxc5 {[%emt 0:00:35]} 36. bxc5 {[%emt 0:00:22]} Rg5 {[%emt 0:01:52]} (36... Rg4 $1 $11 37. Nxe6 Rxg2+ 38. Kf3 (38. Kf1 $2 Rg1+ 39. Kf2 R8g2+ 40. Kf3 Rxa2 $19) 38... R2g4) 37. Qh4 {[%emt 0:02:59][%cal Of4e6] Black must now prevent Nxe6!} Qb7 $2 {[%emt 0:00:13][%mdl 8192] A mistake that costs the game.} (37... R8g7 $1 $14) 38. Kf3 $18 {[%emt 0:00:07]} Qf7 {[%emt 0:00:28]} 39. a4 {[%emt 0:04:15]} Qe7 $2 {[%emt 0:00:34] [#]} (39... R8g7 40. Rg3 Rxg3+ 41. hxg3 Ng6 42. Qd8+ Qg8 43. Nxe6 Re7) 40. a5 $2 {[%emt 0:01:19]} (40. Nxe6 $1 {[%mdl 512]} f4 41. Nxg5 Rxg5 42. Qxf4) 40... R5g7 $2 {[%emt 0:00:18] [#]} (40... R8g7) 41. Rxh7+ $3 {[%emt 0:33:01][%mdl 512] White is clearly winning.} Nxh7 {[%emt 0:30:34] [#]} 42. Ng6+ $1 {[%emt 0:00:08][%mdl 576] Deflection} Rxg6 {[%emt 0:00:04]} 43. Qxe7 {[%emt 0:00:04] Weighted Error Value: White=0.46/Black=0.47} 1-0

[Event "FRA-ch Teams Top 16-Haute 2022"]
[Site "Chartres"]
[Date "2022.06.16"]
[Round "8.25"]
[White "Parligras, Mircea-Emilian"]
[Black "Van Foreest, Jorden"]
[Result "1/2-1/2"]
[ECO "A80"]
[WhiteElo "2583"]
[BlackElo "2715"]
[Annotator "TA"]
[PlyCount "76"]
[EventDate "2022.06.16"]
[EventType "team-tourn"]
[EventCountry "FRA"]
[SourceTitle "playchess.com"]
[Source "ChessBase"]
[SourceQuality "1"]
[TimeControl "40/5400+30:1800+30"]

{[%evp 9,76,20,49,16,22,13,18,13,8,5,31,34,52,44,45,35,34,22,22,22,29,22,41,28,36,35,51,30,52,37,37,15,19,4,4,0,17,0,0,0,0,0,7,0,10,0,0,0,0,0,0,0,7,0,0,0,0,-7,-7,-7,-8,-8,10,-30,-30,-30,-30,-30,-30]} 1. d4 {[%emt 0:00:04]} f5 {[%emt 0:00:08]} 2. Nc3 {[%emt 0:00:32]} Nf6 {[%emt 0:00:10]} 3. Bg5 {[%emt 0:00:05]} d5 {[%emt 0:00:07]} 4. e3 {[%emt 0:00:04]} e6 {[%emt 0:00:05]} 5. Nf3 {[%emt 0:00:13]} Nbd7 {[%emt 0:01:00]} 6. Be2 {[%emt 0:10:14] A80: Dutch Defence: Unusual White second moves.} (6. Ne2 $5 {[%cal Re2f4]}) 6... Be7 {[%emt 0:00:13]} 7. O-O {[%emt 0:00:21]} O-O {[%emt 0:00:07]} 8. h3 {[%emt 0:07:36] [#] The position is equal.} a6 $146 {[%emt 0:02:59]} ({Predecessor:} 8... c6 9. Bf4 Nh5 10. Bh2 Nhf6 11. Rb1 Ne4 12. Nd2 Nxc3 13. bxc3 Qa5 14. c4 Qxa2 {½-½ (59) Lobunets,V (1801)-Landl,M (1975) Krakow 2018}) 9. Nb1 $1 {[%emt 0:07:29]} h6 {[%emt 0:03:03]} 10. Bf4 {[%emt 0:00:40]} b5 {[%emt 0:08:39]} 11. a4 {[%emt 0:05:24]} bxa4 {[%emt 0:06:07]} 12. Rxa4 {[%emt 0:05:44]} c5 {[%emt 0:02:59]} 13. c3 {[%emt 0:04:35]} a5 {[%emt 0:07:24]} 14. Nbd2 {[%emt 0:01:43]} Bb7 {[%emt 0:03:42]} 15. Ra2 {[%emt 0:02:32]} Ne4 {[%emt 0:00:52]} 16. Nxe4 {[%emt 0:04:26]} dxe4 {[%emt 0:11:42]} 17. Ne5 {[%emt 0:00:07]} Nxe5 {[%emt 0:01:34]} 18. Bxe5 {[%emt 0:00:09]} Bd5 {[%emt 0:01:09]} 19. c4 {[%emt 0:08:13]} Bc6 {[%emt 0:00:19]} 20. dxc5 {[%emt 0:04:51]} Bxc5 {[%emt 0:00:28]} 21. Qxd8 {[%emt 0:00:52]} Rfxd8 {[%emt 0:00:09]} 22. Rd1 {[%emt 0:01:36]} Bb4 {[%emt 0:07:57]} 23. Raa1 {[%emt 0:06:47]} Kf7 {[%emt 0:01:56]} 24. Rxd8 {[%emt 0:03:13]} Rxd8 {[%emt 0:00:05]} 25. Rd1 {[%emt 0:00:07]} Ra8 {[%emt 0:01:25]} 26. c5 {[%emt 0:04:00]} Bd5 {[%emt 0:01:29]} 27. c6 {[%emt 0:05:00]} Bxc6 {[%emt 0:07:26]} 28. Rc1 {[%emt 0:00:07]} Bd7 {[%emt 0:00:31]} (28... Rc8 $2 29. Ba6 Bb7 30. Rxc8 $18) 29. Rc7 {[%emt 0:00:09]} Rd8 {[%emt 0:01:53]} 30. Ra7 {[%emt 0:12:06]} g6 {[%emt 0:11:19]} 31. Bc7 {[%emt 0:00:43]} Rc8 {[%emt 0:01:12]} 32. Ba6 $1 {[%emt 0:01:02]} Re8 {[%emt 0:00:45]} 33. Bb6 {[%emt 0:04:26] Inhibits Bc5.} Re7 {[%emt 0:00:02]} 34. Bd8 $1 {[%emt 0:00:18]} Bc5 {[%emt 0:00:03]} 35. Rb7 {[%emt 0:00:31]} Bc8 {[%emt 0:00:39]} 36. Bxe7 {[%emt 0:00:36]} (36. Rb5 $5 {[%cal Ra6c8]} Bxa6 37. Rxc5 $11) 36... Bxb7 {[%emt 0:00:08] Black has an edge.} 37. Bxc5 {[%emt 0:00:05]} Bxa6 {[%emt 0:00:04]} 38. b3 {[%emt 0:00:11]} Bb5 {[%emt 0:00:12] Weighted Error Value: White=0.06 (flawless) /Black=0.05 (flawless)} 1/2-1/2

[Event "FRA-ch Teams Top 16-Haute 2022"]
[Site "Chartres"]
[Date "2022.06.16"]
[Round "8.26"]
[White "Amin, Bassem"]
[Black "Abasov, Nijat"]
[Result "1-0"]
[ECO "C43"]
[WhiteElo "2686"]
[BlackElo "2635"]
[Annotator "TA"]
[PlyCount "65"]
[EventDate "2022.06.16"]
[EventType "team-tourn"]
[EventCountry "FRA"]
[SourceTitle "playchess.com"]
[Source "ChessBase"]
[SourceQuality "1"]
[TimeControl "40/5400+30:1800+30"]

{[%evp 12,65,0,0,8,12,12,12,0,3,0,0,0,0,0,0,4,0,0,0,3,0,0,0,0,-6,8,10,48,48,48,49,46,31,40,39,66,63,74,71,100,104,123,122,158,149,319,316,520,516,575,572,552,546,605,351]} 1. e4 {[%emt 0:00:24]} e5 {[%emt 0:00:05]} 2. Nf3 {[%emt 0:00:12]} Nf6 {[%emt 0:00:06]} 3. d4 {[%emt 0:01:24]} Nxe4 {[%emt 0:00:13]} 4. Bd3 {[%emt 0:00:05]} d5 {[%emt 0:00:28]} 5. Nxe5 {[%emt 0:00:14]} Nd7 {[%emt 0:00:30]} 6. Nc3 {[%emt 0:00:17]} Nxe5 {[%emt 0:08:19] 6...Nxc3 might become the main line.} 7. dxe5 {[%emt 0:00:16]} Bb4 {[%emt 0:00:06] C43: Petroff Defence: 3 d4.} 8. O-O {[%emt 0:00:12]} Nxc3 {[%emt 0:00:04]} 9. bxc3 {[%emt 0:00:10]} Bxc3 {[%emt 0:00:03] The position is equal.} 10. Rb1 {[%emt 0:00:16]} O-O {[%emt 0:00:10]} 11. Bxh7+ {[%emt 0:00:07][%mdl 64] [#] Decoy} Kxh7 {[%emt 0:00:04]} 12. Qd3+ {[%emt 0:00:10]} Kg8 {[%emt 0:00:05]} 13. Qxc3 {[%emt 0:00:04]} a5 {[%emt 0:00:07][%cal Ba7a5,Ba5a4][%mdl 32]} 14. Rd1 {[%emt 0:00:42] [#]} (14. Qg3 {looks sharper.} Qd7 15. Rb3 Qf5 16. Ba3) 14... Re8 $146 {[%emt 0:12:10]} ({Predecessor:} 14... Qd7 15. Bg5 Ra6 16. Rd3 Qf5 17. f4 Rc6 18. Qd2 Qh7 19. Be7 Re8 20. Rxd5 Qxc2 {0-1 (117) Ramoutar,A (2411)-Vetokhin,S (2339) Arandjelovac 2021}) 15. h3 {[%emt 1:33:27]} Ra6 {[%emt 1:15:30]} 16. Rb5 {[%emt 0:00:30]} c6 {[%emt 0:00:00]} 17. Rb3 {[%emt 0:00:00]} a4 {[%emt 0:00:00]} 18. Rb4 {[%emt 0:00:00]} Qa5 {[%emt 0:00:00] ...c5 is the strong threat.} 19. Be3 {[%emt 0:00:00] Prevents c5.} c5 {[%emt 0:02:00]} 20. Qxc5 {[%emt 0:02:00]} (20. Bxc5 $2 Rc6 21. Qd4 (21. Rxd5 $2 Be6 $19) 21... Qxc5 $19) 20... Qxc5 {[%emt 0:00:00]} 21. Bxc5 {[%emt 0:00:30]} Rxe5 {[%emt 0:01:00]} 22. a3 {[%emt 0:00:30]} Rc6 {[%emt 0:00:00]} 23. Bd4 {[%emt 0:00:00]} Rg5 {[%emt 0:00:00]} 24. Be3 {[%emt 0:00:00]} ({Much weaker is} 24. Rxa4 Bxh3 25. g3 (25. Ra8+ Kh7 $17) 25... Rxc2 $15) 24... Re5 {[%emt 0:00:00]} 25. c3 {[%emt 0:00:00]} Rh5 {[%emt 0:00:00]} 26. Bd4 {[%emt 0:00:00] White is more active.} ({Don't take} 26. Rxa4 Rxc3 27. Ra5 Kh7 $14) 26... Rg6 {[%emt 0:02:30] [#]} 27. Kh2 {[%emt 0:02:30]} ({Worse is} 27. Rxa4 Bxh3 28. Kf1 (28. Ra8+ Kh7 $17) 28... Bg4 $15) 27... Rhg5 {[%emt 0:00:30]} 28. g4 {[%emt 0:00:00] Threatens to win with Re1.} Ra6 $2 {[%emt 0:00:30] Loses the game.} (28... Re6 $16 {was necessary.} 29. Rxa4 Re8) 29. Re1 $18 {[%emt 0:00:00]} Kh7 $2 {[%emt 0:00:00]} (29... Re6 {might work better.}) 30. Re8 {[%emt 0:00:00] White is clearly winning.} Rc6 {[%emt 0:00:00]} 31. f4 {[%emt 0:00:00][%cal Bf2f4,Bf4f5][%mdl 32]} Rgg6 {[%emt 0:00:00]} 32. f5 {[%emt 0:00:00]} Rgd6 {[%emt 0:00:00]} 33. Be5 {[%emt 0:00:00] Weighted Error Value: White=0.01 (flawless) /Black=0.33} 1-0

[Event "FRA-ch Teams Top 16-Haute 2022"]
[Site "Chartres"]
[Date "2022.06.16"]
[Round "8.27"]
[White "Nanu, Costica-Ciprian"]
[Black "Tregubov, Pavel V."]
[Result "0-1"]
[ECO "A25"]
[WhiteElo "2520"]
[BlackElo "2541"]
[Annotator "TA"]
[PlyCount "68"]
[EventDate "2022.06.16"]
[EventType "team-tourn"]
[EventCountry "FRA"]
[SourceTitle "playchess.com"]
[Source "ChessBase"]
[SourceQuality "1"]
[TimeControl "40/5400+30:1800+30"]

{[%evp 10,68,14,16,28,31,35,0,0,0,0,0,0,0,0,0,10,0,43,-17,-16,-31,-18,-32,-29,-31,-35,-24,-7,-34,-17,-35,-19,-190,-195,-335,-350,-343,-354,-375,-349,-402,-389,-358,-219,-243,-234,-263,-205,-349,-346,-348,-336,-358,-341,-352,-329,-746,-722,-1558,-1399]} 1. c4 {[%emt 0:00:40]} e5 {[%emt 0:00:31]} 2. g3 {[%emt 0:00:46]} Nf6 {[%emt 0:00:22]} 3. Bg2 {[%emt 0:00:05]} Nc6 {[%emt 0:01:08]} 4. Nc3 {[%emt 0:00:24]} Bc5 {[%emt 0:00:09]} 5. a3 {[%emt 0:01:58]} a6 {[%emt 0:01:58]} 6. e3 {[%emt 0:01:39]} d6 {[%emt 0:00:38] A25: English Opening vs King's Indian with ...Nc6 but without early d3.} 7. Nge2 {[%emt 0:00:23]} O-O {[%emt 0:10:58] has lost popularity (7...Ba7).} 8. d3 {[%emt 0:03:17][%cal Bd2d3,Bd3d4][%mdl 32]} (8. b4 $5 {[%cal Rb4c5]} Ba7 9. d4 $11) 8... Ne7 {[%emt 0:04:18] The position is equal.} 9. O-O {[%emt 0:06:26]} c6 {[%emt 0:01:33]} 10. d4 {[%emt 0:07:44]} Ba7 {[%emt 0:01:11]} 11. b3 {[%emt 0:02:48]} Be6 {[%emt 0:05:22]} 12. Bb2 {[%emt 0:02:34] [#]} Qd7 $146 {[%emt 0:04:46]} ({Predecessor:} 12... Qc8 13. Qd3 Bh3 14. Rad1 Bxg2 15. Kxg2 Rd8 16. Rd2 Nf5 17. d5 b5 18. dxc6 bxc4 19. Qxc4 Bxe3 {½-½ (45) Cruz,C (2546)-Popov,I (2622) Chennai 2015}) 13. a4 {[%emt 0:18:23]} Rad8 {[%emt 0:03:32]} 14. a5 {[%emt 0:01:25]} ({White should try} 14. dxe5 $14 dxe5 15. Ba3) 14... Qc8 $11 {[%emt 0:06:28]} 15. Qc2 {[%emt 0:11:46]} Bf5 {[%emt 0:04:24]} 16. Ne4 {[%emt 0:03:58]} Nxe4 {[%emt 0:04:39]} 17. Bxe4 {[%emt 0:00:14]} Bxe4 {[%emt 0:00:15]} 18. Qxe4 {[%emt 0:00:03]} f5 {[%emt 0:02:55]} 19. Qg2 {[%emt 0:02:27]} Ng6 {[%emt 0:03:16]} 20. Qh3 {[%emt 0:08:50]} Qc7 {[%emt 0:03:23]} 21. c5 $2 {[%emt 0:07:56] [#] Loses the game.} (21. Bc3 $11) 21... dxc5 $19 {[%emt 0:01:39]} 22. Ba3 {[%emt 0:10:59]} (22. dxe5 {was worth a try.} Rd2 23. Bc3 Rxe2 24. Rfc1) 22... exd4 {[%emt 0:00:27]} 23. exd4 {[%emt 0:00:05]} Rfe8 {[%emt 0:00:23]} ({Not} 23... cxd4 24. Bxf8 Rxf8 25. Rfd1 $17) 24. Nc1 {[%emt 0:00:14]} cxd4 {[%emt 0:09:28]} 25. Qxf5 {[%emt 0:00:09]} Rd5 {[%emt 0:00:43]} 26. Qc2 {[%emt 0:00:37]} Qxa5 {[%emt 0:01:26] ...Ne5 is the strong threat.} 27. Nd3 {[%emt 0:00:40]} Qb5 {[%emt 0:02:11]} 28. Rae1 {[%emt 0:00:22]} Rdd8 {[%emt 0:00:32]} 29. Qd1 {[%emt 0:02:27]} (29. Qc4+ {might work better.} Qxc4 30. bxc4) 29... Ne5 {[%emt 0:02:39]} 30. Nxe5 {[%emt 0:02:21]} Rxe5 {[%emt 0:00:06]} 31. Rxe5 {[%emt 0:00:03]} Qxe5 {[%emt 0:00:07]} 32. Re1 {[%emt 0:00:03]} Qf5 {[%emt 0:01:20]} 33. Re7 $2 {[%emt 0:04:05] [#]} (33. Bc1) 33... d3 {[%emt 0:00:52]} 34. Kh1 {[%emt 0:00:56]} Qxf2 {[%emt 0:23:51] Weighted Error Value: White=0.59/Black=0.11 (very precise)} 0-1

[Event "FRA-ch Teams Top 16-Haute 2022"]
[Site "Chartres"]
[Date "2022.06.16"]
[Round "8.28"]
[White "Vocaturo, Daniele"]
[Black "Barbot, Pierre"]
[Result "1-0"]
[ECO "C42"]
[WhiteElo "2608"]
[BlackElo "2450"]
[Annotator "TA"]
[PlyCount "69"]
[EventDate "2022.06.16"]
[EventType "team-tourn"]
[EventCountry "FRA"]
[SourceTitle "playchess.com"]
[Source "ChessBase"]
[SourceQuality "1"]
[TimeControl "40/5400+30:1800+30"]

{[%evp 13,69,34,38,37,35,8,19,18,36,23,24,-5,11,12,5,-2,56,56,58,56,42,6,6,5,4,3,7,4,6,9,13,-3,149,149,150,135,148,141,143,144,237,243,308,290,306,281,303,249,1187,1146,1052,1057,1051,1043,1042,1013,954,929]} 1. e4 {[%emt 0:00:08]} e5 {[%emt 0:00:08]} 2. Nf3 {[%emt 0:00:26]} Nf6 {[%emt 0:00:04]} 3. Nxe5 {[%emt 0:02:11]} d6 {[%emt 0:00:08]} 4. Nf3 {[%emt 0:00:09]} Nxe4 {[%emt 0:00:04]} 5. Nc3 {[%emt 0:00:37][%cal Bb1c3,Bc3e2,Be2g3][%mdl 32]} Nf6 {[%emt 0:00:04]} 6. d4 {[%emt 0:00:45]} Be7 {[%emt 0:00:05]} 7. Bd3 {[%emt 0:01:09]} O-O {[%emt 0:00:11]} 8. O-O {[%emt 0:01:31] C42: Petroff Defence: 3 Nxe5 and unusual White 3rd moves.} Re8 {[%emt 0:00:59]} 9. Ne2 {[%emt 0:02:49]} b6 {[%emt 0:01:48]} 10. Ng3 {[%emt 0:02:46] The position is equal.} Bb7 {[%emt 0:01:26] [#]} 11. Bf4 $146 {[%emt 0:03:20]} ({Predecessor:} 11. Nf5 Bf8 12. Bg5 h6 13. Bh4 g6 14. Ne3 Bg7 15. Re1 Nbd7 16. c3 c5 17. Rc1 {0-1 (40) Valner,U (2274)-Usmanov,V (2495) Tallinn 2019}) 11... Nbd7 {[%emt 0:00:38]} 12. c4 {[%emt 0:04:11]} Nf8 {[%emt 0:15:23]} 13. d5 {[%emt 0:11:44]} Ng6 {[%emt 0:01:27]} 14. Bd2 {[%emt 0:00:07]} Ne5 {[%emt 0:10:36]} (14... c6 $11) 15. Nxe5 {[%emt 0:05:23]} dxe5 {[%emt 0:00:07]} 16. Bc3 {[%emt 0:00:12]} Bd6 {[%emt 0:06:18]} 17. Qf3 {[%emt 0:02:30]} e4 {[%emt 0:03:50]} 18. Bxe4 {[%emt 0:06:03]} ({Reject} 18. Nxe4 Nxe4 19. Bxe4 Qh4 $15) 18... Nxe4 {[%emt 0:03:18]} 19. Nxe4 {[%emt 0:03:23][%cal Oe4f6] Black must now prevent Nf6+!} Bxh2+ $1 {[%emt 0:00:05][%mdl 64] Decoy} 20. Kxh2 {[%emt 0:00:07]} Qh4+ {[%emt 0:00:07]} 21. Kg1 {[%emt 0:00:08]} Rxe4 {[%emt 0:02:46]} 22. Rae1 $40 {[%emt 0:00:41][%mdl 128] White is up to no good.} Ree8 {[%emt 0:10:29]} (22... Rxc4 $11 23. Re3 Qg4) 23. Re3 $16 {[%emt 0:10:23] And now Rfe1 would win.} f6 {[%emt 0:06:38]} 24. Rfe1 {[%emt 0:02:48]} Rxe3 {[%emt 0:00:41]} 25. Qxe3 {[%emt 0:03:55] Threatening mate with Qe6+.} Qh5 {[%emt 0:01:05]} (25... Qxc4 {leads to mate.} 26. Qe6+ Kf8 {[#]} 27. Bxf6 $1 {[%mdl 512]} Qc5 28. Be7+) 26. Qg3 {[%emt 0:01:12][%csl LRc7,LRf6] White is more active.} Qf7 {[%emt 0:00:04] Inhibits Re7.} (26... Re8 $16) 27. Re6 $18 {[%emt 0:00:17] Strongly threatening Rxf6.} Kh8 {[%emt 0:01:34]} 28. Qe3 {[%emt 0:03:04]} Rc8 {[%emt 0:02:13]} 29. f3 {[%emt 0:02:39]} Ba6 {[%emt 0:03:02]} 30. b3 {[%emt 0:01:13]} h6 $2 {[%emt 0:00:04] [#]} (30... Qg6 31. Re7 h6) 31. Bxf6 $1 {[%emt 0:08:02][%mdl 512] White is clearly winning.} gxf6 {[%emt 0:01:54]} 32. Qxh6+ {[%emt 0:00:08]} Qh7 {[%emt 0:00:17]} 33. Qxf6+ {[%emt 0:00:06]} Qg7 {[%emt 0:00:03]} 34. Qh4+ {[%emt 0:00:21]} Kg8 {[%emt 0:00:05]} 35. Qh5 {[%emt 0:00:08] Weighted Error Value: White=0.08 (flawless) /Black=0.27 (precise)} 1-0